bitfinex/quotes_ETHUSD_20211001
["timestamp","ask_amount","ask_price","bid_price","bid_amount"]
[1633104214387,0.08322579,3230.5,3230.4,0.186]
[1633104214787,0.08322579,3230.5,3230.4,0.18017007]
[1633104215587,0.26922579,3230.5,3230.4,0.18017007]
[1633104218989,0.26922579,3230.5,3230.4,0.13336007]
[1633104219589,0.26922579,3230.5,3230.4,1.27312071]
[1633104219789,0.26922579,3230.5,3230.4,0.13336007]
[1633104220189,0.26922579,3230.5,3230.4,1.064134]
[1633104220391,0.26922579,3230.5,3230.4,1.06419335]
[1633104220990,0.26922579,3230.5,3230.4,0.13336007]
[1633104221592,0.26922579,3230.5,3230.4,1.06416274]
[1633104223193,0.26922579,3230.5,3230.4,0.13336007]
[1633104224797,1.56322579,3230.5,3230.4,0.13336007]
[1633104226203,0.26922579,3230.5,3230.4,0.13336007]
[1633104227796,0.26922579,3230.5,3230.0,0.90724351]
[1633104227998,0.079913,3230.2,3229.9,0.01105094]
[1633104228198,0.186,3230.1,3229.9,0.01105094]
[1633104228396,16.04543,3230.0,3229.9,0.01105094]
[1633104228597,4.83143,3230.0,3229.9,0.01105094]
[1633104229000,5.62333872,3230.0,3229.9,0.01105094]
[1633104229598,4.83143,3230.0,3229.9,0.01105094]
[1633104230598,5.53881582,3230.0,3229.9,0.01105094]
[1633104230996,4.83143,3230.0,3229.9,0.01105094]
[1633104234204,4.64487,3229.6,3229.3,0.8908362]
[1633104234467,0.186,3229.5,3229.4,0.93283889]
[1633104234601,0.186,3229.5,3229.3,0.93308893]
[1633104235004,0.186,3229.9,3229.3,0.93308893]
[1633104235201,0.003,3230.0,3229.5,3.0956185]
[1633104235404,0.003,3230.0,3229.6,5.57557215]
[1633104235604,0.003,3230.0,3229.7,0.93157325]
[1633104235804,0.003,3230.0,3229.7,1.46098892]
[1633104236003,0.003,3230.0,3229.9,1.10949679]
[1633104236204,0.003,3230.0,3229.9,2.03412463]
[1633104236705,0.003,3230.0,3229.9,3.32812463]
[1633104238503,0.003,3230.0,3229.9,2.03412463]
[1633104238905,0.003,3230.0,3229.9,0.93045777]
[1633104239104,0.003,3230.0,3229.9,0.93159539]
[1633104239307,0.003,3230.0,3229.6,0.93197559]
[1633104239505,0.003,3230.0,3229.7,0.93211552]
[1633104239704,0.186,3229.9,3229.3,13.14122768]
[1633104239903,0.186,3229.9,3229.5,0.96273237]
[1633104240104,4.83059,3229.9,3229.6,0.93315158]
[1633104242104,4.83059,3229.9,3229.5,0.96273237]
[1633104242306,5.81600012,3229.9,3229.6,0.93293639]
[1633104243105,5.81600012,3229.9,3229.7,0.93298977]
[1633104243310,5.81600012,3229.9,3229.2,0.53695742]
[1633104243507,5.81600012,3229.9,3229.3,0.93257676]
[1633104243906,4.83059,3229.9,3229.7,0.9386075]
[1633104244311,4.83059,3229.9,3229.2,0.53610321]
[1633104244510,4.83059,3229.9,3229.3,0.93097952]
[1633104245108,5.69731418,3229.9,3229.3,1.92373554]
[1633104245307,5.69731418,3229.9,3229.4,1.99421407]
[1633104245511,5.69731418,3229.9,3229.5,0.93057549]
[1633104245908,3.0965,3229.7,3229.5,0.93057549]
[1633104246109,0.186,3229.6,3229.5,0.93057549]
[1633104246579,0.186,3229.6,3229.2,3.10237]
[1633104246580,0.186,3229.6,3229.3,0.93145386]
[1633104246778,0.186,3229.6,3229.4,0.93144055]
[1633104246981,0.186,3229.6,3229.5,0.9313487]
[1633104247183,0.186,3229.6,3229.3,0.93094546]
[1633104248383,0.71426614,3229.4,3229.3,0.93094546]
[1633104248783,3.0965,3229.7,3229.3,0.93094546]
[1633104249786,0.94290493,3229.4,3229.3,0.93094546]
[1633104253189,0.186,3229.8,3229.3,0.93094546]
[1633104253590,0.186,3229.8,3229.5,1.16669829]
[1633104253789,0.186,3229.8,3229.6,0.93248144]
[1633104254792,0.186,3229.8,3229.6,5.57714144]
[1633104254993,0.186,3229.8,3229.7,0.93271801]
[1633104256192,0.186,3229.8,3229.6,0.93296137]
[1633104257393,0.186,3229.8,3229.5,3.09636]
[1633104257791,0.003,3230.0,3229.6,1.294]
[1633104257991,0.003,3230.0,3229.7,0.53118391]
[1633104258192,0.003,3230.0,3229.8,5.54933647]
[1633104258393,0.003,3230.0,3229.8,6.08043946]
[1633104258592,0.003,3230.0,3229.9,1.25270488]
[1633104258792,0.003,3230.0,3229.9,0.72164531]
[1633104258992,0.003,3230.0,3229.9,2.01564531]
[1633104260794,3.16459586,3230.5,3230.4,0.95460487]
[1633104260992,3.16459586,3230.5,3230.4,2.08263072]
[1633104261394,3.16459586,3230.5,3230.4,3.37663072]
[1633104261993,0.189,3231.0,3230.5,3.0948]
[1633104263596,0.189,3231.0,3230.7,4.64261]
[1633104263995,0.189,3231.0,3230.7,7.73758]
[1633104264193,0.189,3231.0,3230.7,6.1900433]
[1633104264995,0.189,3231.0,3230.9,0.90681218]
[1633104265194,0.189,3231.0,3230.9,1.62584329]
[1633104265994,0.189,3231.0,3230.9,0.90681218]
[1633104267396,0.189,3231.0,3230.8,4.64239]
[1633104268197,0.0187,3231.0,3230.8,4.64239]
[1633104268399,0.0187,3231.0,3230.8,5.78445926]
[1633104274199,0.0187,3231.0,3230.8,1.14206926]
[1633104275200,0.0187,3231.0,3230.7,13.27089946]
[1633104276001,0.0187,3231.0,3230.7,12.3792733]
[1633104276403,0.0187,3231.0,3230.8,1.18584052]
[1633104276805,0.03423329,3231.4,3230.8,1.18584052]
[1633104276806,0.03423329,3231.4,3231.3,0.83312991]
[1633104277005,0.003,3231.5,3231.3,1.64755982]
[1633104277204,0.003,3231.5,3231.3,3.03265982]
[1633104277407,0.04885779,3231.9,3231.6,0.79345818]
[1633104277606,0.04885779,3231.9,3231.7,2.64688325]
[1633104277805,0.003,3232.0,3231.8,5.95]
[1633104277806,0.00185779,3232.0,3231.8,5.95]
[1633104278005,0.00185779,3232.0,3231.7,5.74042325]
[1633104278607,0.00185779,3232.0,3231.7,4.2488779]
[1633104279407,0.00185779,3232.0,3231.7,7.3426431]
[1633104280606,0.00185779,3232.0,3231.8,4.14065]
[1633104281009,0.00185779,3232.0,3231.8,3.44865]
[1633104282608,0.00185779,3232.0,3231.7,7.3426431]
[1633104282809,0.00185779,3232.0,3231.7,4.2488779]
[1633104283411,0.003,3232.5,3231.9,8.7]
[1633104283613,0.003,3232.5,3232.4,0.040756]
[1633104284011,0.1,3232.8,3232.4,0.040756]
[1633104284211,0.1,3232.8,3232.4,1.69175167]
[1633104284411,0.003,3233.0,3232.6,1.294]
[1633104284611,0.003,3233.0,3232.7,0.186]
[1633104285012,0.003,3233.0,3232.7,1.6945]
[1633104285212,0.003,3233.0,3232.8,0.26557594]
[1633104285482,0.003,3233.0,3232.9,2.58153769]
[1633104285612,0.003,3233.5,3233.0,3.09218]
[1633104285815,0.003,3233.5,3233.2,4.679036]
[1633104286213,0.003,3233.5,3233.2,6.16344769]
[1633104286809,0.003,3233.5,3233.2,9.25553469]
[1633104287010,0.003,3233.5,3233.2,7.730367]
[1633104287611,0.003,3233.5,3233.2,3.092087]
[1633104287812,0.003,3233.5,3233.3,1.294]
[1633104288010,0.003,3233.5,3233.2,3.092087]
[1633104288612,0.003,3233.5,3233.3,4.63788]
[1633104288815,0.003,3233.5,3233.4,0.88184782]
[1633104289015,0.003,3233.5,3233.4,1.74778558]
[1633104289515,0.003,3233.5,3233.2,3.092087]
[1633104289716,0.079913,3233.3,3233.0,3.09218]
[1633104289915,0.186,3233.2,3233.0,3.09218]
[1633104290916,1.294,3233.1,3233.0,3.09218]
[1633104291115,1.48,3233.1,3233.0,3.09218]
[1633104291517,0.186,3233.1,3233.0,3.09218]
[1633104293515,0.186,3233.1,3233.0,3.99434188]
[1633104296116,0.186,3233.1,3233.0,3.09218]
[1633104296522,1.48,3233.1,3232.5,3.093]
[1633104296720,0.079913,3233.0,3232.5,3.093]
[1633104296919,0.186,3232.9,3232.5,3.096]
[1633104297981,0.186,3232.9,3232.8,0.81304561]
[1633104298781,0.186,3232.9,3232.5,3.096]
[1633104299781,0.186,3232.9,3232.7,4.6394]
[1633104299982,0.186,3232.9,3232.5,3.096]
[1633104301092,0.86676866,3232.7,3232.5,3.096]
[1633104301390,0.186,3232.6,3232.5,3.096]
[1633104302391,0.186,3232.6,3232.5,0.003]
[1633104302792,0.186,3232.6,3231.9,0.006]
[1633104303395,0.186,3232.6,3231.9,0.7266594]
[1633104303593,0.186,3232.6,3232.4,0.94607369]
[1633104303993,0.186,3232.6,3232.5,0.003]
[1633104304795,0.186,3232.6,3232.0,0.006]
[1633104305395,0.186,3232.6,3232.2,3.09372]
[1633104305796,0.186,3232.6,3232.3,0.003]
[1633104306597,1.294,3232.5,3232.3,0.003]
[1633104306797,13.765913,3232.4,3232.0,0.003]
[1633104307006,13.765913,3232.4,3231.4,0.006]
[1633104307007,0.186,3232.3,3231.4,0.006]
[1633104307398,2.9041955,3232.3,3231.4,0.006]
[1633104307597,0.79505864,3231.6,3231.4,0.006]
[1633104308399,0.186,3231.5,3231.4,0.006]
[1633104309198,1.48,3231.5,3231.4,0.006]
[1633104309398,11.23,3231.5,3231.4,0.006]
[1633104310199,11.23,3231.5,3231.3,1.64755982]
[1633104310399,0.81442991,3231.3,3230.7,0.003]
[1633104310607,0.87834352,3231.0,3230.4,0.92369216]
[1633104310801,0.186,3230.9,3230.2,0.006]
[1633104311001,0.186,3230.9,3230.5,0.006]
[1633104311604,1.294,3230.7,3230.5,0.006]
[1633104311804,0.186,3230.6,3230.5,0.006]
[1633104312002,0.186,3230.6,3230.1,0.006]
[1633104312203,0.96466078,3230.4,3230.1,0.006]
[1633104312401,0.186,3230.3,3230.1,0.006]
[1633104313999,0.186,3230.3,3230.2,0.78337529]
[1633104314201,15.059913,3230.3,3230.1,0.006]
[1633104314401,0.265913,3230.3,3230.2,0.006]
[1633104314602,0.265913,3230.3,3230.2,0.003]
[1633104314804,0.265913,3230.3,3229.5,3.09957]
[1633104315200,1.17917042,3230.3,3229.7,0.74518913]
[1633104315401,0.265913,3230.3,3229.7,1.59822531]
[1633104315601,0.265913,3230.3,3229.7,0.74518913]
[1633104316401,1.0249744,3230.3,3229.7,0.74518913]
[1633104316603,1.0249744,3230.3,3229.8,1.19429041]
[1633104317203,0.186,3230.3,3229.8,1.19429041]
[1633104318804,0.186,3230.3,3229.7,0.74518913]
[1633104319603,4.83088,3230.3,3229.7,0.74518913]
[1633104320007,4.83088,3230.3,3229.9,1.13003735]
[1633104320205,0.186,3230.3,3229.9,4.22602735]
[1633104320606,0.186,3230.3,3229.9,8.86953735]
[1633104320807,0.186,3230.3,3229.9,4.22602735]
[1633104323107,0.003,3230.5,3229.9,4.22602735]
[1633104323707,0.003,3230.5,3230.1,4.64309]
[1633104323907,0.003,3230.5,3230.2,0.9776298]
[1633104325509,0.003,3230.5,3230.4,0.89697656]
[1633104329314,0.003,3230.5,3230.4,2.19097656]
[1633104329912,0.139,3230.8,3230.7,0.79686248]
[1633104334913,0.139,3230.8,3230.6,3.09502]
[1633104335916,0.139,3230.8,3230.7,0.83214231]
[1633104337120,0.139,3230.8,3230.7,5.47452231]
[1633104338520,0.139,3230.8,3230.7,0.83214231]
[1633104338920,0.139,3230.8,3230.6,6.1898275]
[1633104339119,0.139,3230.8,3230.6,3.09502]
[1633104339318,0.139,3230.8,3229.9,22.4057]
[1633104339522,0.139,3230.8,3229.8,2.46]
[1633104339721,0.079913,3230.5,3229.8,2.46]
[1633104339921,1.18196608,3230.5,3229.9,0.78171993]
[1633104340123,1.18196608,3230.5,3230.0,0.85387534]
[1633104340323,1.18196608,3230.5,3230.0,0.003]
[1633104340523,5.82613608,3230.5,3230.0,0.003]
[1633104340722,5.82613608,3230.5,3229.9,0.003]
[1633104340924,5.82613608,3230.5,3230.0,3.09612]
[1633104341322,5.82613608,3230.5,3230.0,3.09912]
[1633104341924,5.65593608,3230.5,3230.0,3.09912]
[1633104342324,4.739883,3230.5,3230.0,3.09912]
[1633104342785,0.095713,3230.5,3230.0,3.09912]
[1633104343386,4.739883,3230.5,3230.0,3.09912]
[1633104344185,0.095713,3230.5,3230.0,3.09912]
[1633104344587,4.739743,3230.5,3230.0,3.09912]
[1633104346788,0.095713,3230.5,3230.0,3.09912]
[1633104347589,0.095713,3230.5,3230.4,1.04578768]
[1633104348189,0.095713,3230.5,3230.0,3.09912]
[1633104348793,0.095713,3230.5,3230.1,3.0955762]
[1633104349189,0.095713,3230.5,3230.2,1.05865268]
[1633104351191,0.095713,3230.5,3230.0,3.9280167]
[1633104352192,0.095713,3230.5,3230.4,0.99131047]
[1633104353996,0.095713,3230.5,3230.0,3.9280167]
[1633104354994,0.095713,3230.5,3230.3,0.89659164]
[1633104355197,0.095713,3230.5,3230.0,3.09912]
[1633104356196,4.739743,3230.5,3230.0,3.09912]
[1633104356498,4.739743,3230.5,3230.2,1.03628082]
[1633104356898,4.739743,3230.5,3230.0,3.09912]
[1633104357296,0.095713,3230.5,3230.0,3.09912]
[1633104358295,0.095713,3230.5,3230.3,1.21465883]
[1633104359100,0.095713,3230.5,3230.0,3.09912]
[1633104359598,4.739813,3230.5,3230.0,3.09912]
[1633104359998,0.095713,3230.5,3230.0,3.09912]
[1633104360197,0.98558637,3230.4,3230.3,0.90497243]
[1633104360397,0.186,3230.4,3230.0,3.09912]
[1633104361603,0.186,3230.4,3230.3,1.1443894]
[1633104362601,0.186,3230.4,3230.0,3.09912]
[1633104362798,0.186,3230.4,3230.1,4.64357]
[1633104363598,0.186,3230.4,3230.2,0.92389301]
[1633104363999,0.186,3230.4,3230.2,5.56732301]
[1633104364798,0.186,3230.4,3230.2,0.92389301]
[1633104367801,0.186,3230.4,3230.2,5.56723301]
[1633104368001,0.003,3231.0,3230.2,5.56723301]
[1633104368002,0.186,3230.8,3230.2,5.56723301]
[1633104368807,0.186,3230.8,3230.4,0.95045828]
[1633104369003,0.186,3230.8,3230.4,4.64309]
[1633104369405,0.186,3230.8,3230.4,7.73848]
[1633104370004,4.82972,3230.8,3230.2,0.92389301]
[1633104370204,0.8430172,3230.6,3230.2,0.92389301]
[1633104370406,0.186,3230.8,3230.2,0.92389301]
[1633104371205,0.186,3230.8,3230.2,1.00380601]
[1633104372404,0.186,3230.8,3230.6,0.78709916]
[1633104372606,0.186,3230.8,3230.7,1.01371443]
[1633104373205,0.186,3230.8,3230.2,3.175663]
[1633104373806,4.82967,3230.8,3230.2,3.175663]
[1633104374406,4.82967,3230.8,3230.5,0.87420452]
[1633104378408,4.82967,3230.8,3230.2,3.175663]
[1633104378608,0.78142683,3230.6,3230.3,0.92575576]
[1633104378810,0.186,3230.5,3230.3,0.92575576]
[1633104379609,0.186,3230.5,3230.4,0.892088]
[1633104379812,0.186,3230.5,3230.4,1.81875]
[1633104390521,0.186,3230.5,3230.4,1.76875]
[1633104399795,0.186,3230.5,3230.4,0.926662]
[1633104401396,0.186,3230.5,3230.4,1.89205672]
[1633104408407,0.186,3230.5,3230.4,0.926662]
[1633104408604,0.186,3230.5,3230.3,0.92899917]
[1633104408807,1.56482322,3230.4,3230.0,0.53212849]
[1633104409405,1.56482322,3230.4,3230.1,0.87058064]
[1633104410009,0.87058064,3229.5,3229.4,1.23547311]
[1633104410208,14.37058064,3229.2,3229.1,1.24271717]
[1633104410409,5.78149364,3229.2,3229.1,0.006]
[1633104411011,12.9805566,3229.2,3229.1,0.006]
[1633104411212,14.2745566,3229.2,3229.1,0.006]
[1633104411409,13.5,3229.1,3229.0,0.009]
[1633104411609,20.07600237,3229.1,3229.0,0.009]
[1633104411808,6.57600237,3229.1,3229.0,0.009]
[1633104412009,10.95,3229.0,3228.9,0.006]
[1633104412211,11.22976219,3229.0,3228.9,0.006]
[1633104412414,4.83792,3229.0,3228.9,0.006]
[1633104412612,0.191,3229.0,3228.9,0.006]
[1633104412812,0.186,3229.0,3228.9,0.006]
[1633104414817,0.186,3229.0,3228.9,2.02674851]
[1633104415214,0.186,3229.0,3228.9,0.73274851]
[1633104415414,0.186,3229.0,3228.9,0.006]
[1633104415813,0.186,3229.0,3228.9,0.92954311]
[1633104416013,0.0158,3229.0,3228.9,0.92954311]
[1633104416414,0.0158,3229.0,3228.9,0.006]
[1633104418216,0.0158,3229.0,3228.9,0.87232578]
[1633104421216,0.0158,3229.0,3228.9,0.87042178]
[1633104423818,0.0158,3229.0,3228.9,1.61388177]
[1633104436395,4.61161,3229.1,3228.9,0.74755599]
[1633104436593,4.79761,3229.1,3229.0,0.74290254]
[1633104438596,4.79761,3229.1,3229.0,1.71176539]
[1633104438797,0.186,3229.1,3229.0,1.71176539]
[1633104439796,0.186,3229.1,3229.0,2.50954749]
[1633104441199,0.186,3229.1,3229.0,3.80354749]
[1633104441502,0.11925857,3229.6,3229.0,3.80354749]
[1633104441503,0.86002451,3230.0,3229.3,2.61349779]
[1633104441700,0.86002451,3230.0,3229.4,3.61711296]
[1633104441899,0.86002451,3230.0,3229.6,4.64358]
[1633104442104,0.86002451,3230.0,3229.7,1.7497992]
[1633104442300,0.86002451,3230.0,3229.8,0.74082846]
[1633104442698,0.86002451,3230.0,3229.9,1.01442924]
[1633104443700,0.86002451,3230.0,3229.9,1.75574082]
[1633104443900,0.86002451,3230.0,3229.9,1.01442924]
[1633104444606,0.86002451,3230.0,3229.9,1.75571226]
[1633104444804,0.86002451,3230.0,3229.9,1.01442924]
[1633104445002,0.86002451,3230.0,3229.9,1.75571117]
[1633104445205,0.86002451,3230.0,3229.9,1.01442924]
[1633104445404,0.86002451,3230.0,3229.9,1.75556377]
[1633104451810,0.86002451,3230.0,3229.9,3.04947438]
[1633104452012,0.86002451,3230.0,3229.9,1.75547438]
[1633104453811,2.15402451,3230.0,3229.9,0.74104514]
[1633104454011,2.15402451,3230.0,3229.3,5.07349779]
[1633104454012,2.41993751,3230.0,3229.3,5.07349779]
[1633104454211,1.12593751,3230.0,3229.4,0.74250591]
[1633104454412,1.12593751,3230.0,3229.3,5.07349779]
[1633104454611,4.64607,3229.5,3229.3,5.07349779]
[1633104454812,0.186,3229.4,3229.3,5.07349779]
[1633104455215,0.186,3229.4,3229.3,2.61349779]
[1633104462415,1.48,3229.4,3229.3,2.61349779]
[1633104463220,8.85167967,3229.4,3229.3,2.61349779]
[1633104463420,6.125,3229.4,3229.3,2.61349779]
[1633104463818,7.87060033,3229.4,3229.3,2.61349779]
[1633104464018,6.125,3229.4,3229.3,2.61349779]
[1633104464818,7.1455,3229.4,3229.3,2.61349779]
[1633104465018,9.87861579,3229.4,3229.3,2.61349779]
[1633104465223,7.18130828,3229.4,3229.3,2.61349779]
[1633104466122,8.92655046,3229.4,3229.3,2.61349779]
[1633104466322,11.62719076,3229.4,3229.3,2.61349779]
[1633104466522,11.75359076,3229.4,3229.3,2.61349779]
[1633104466722,0.87058064,3229.3,3229.0,0.003]
[1633104466923,4.645,3229.1,3229.0,0.003]
[1633104467124,6.57610204,3229.1,3229.0,0.003]
[1633104468125,7.87010204,3229.1,3229.0,0.003]
[1633104471726,25.48720058,3229.1,3228.9,9.6e-05]
[1633104471928,24.03077876,3229.0,3228.9,9.6e-05]
[1633104472127,26.47242551,3229.0,3228.9,9.6e-05]
[1633104472329,13.5,3228.9,3228.2,0.006]
[1633104472526,4.645,3228.7,3228.2,0.006]
[1633104472726,0.186,3228.6,3228.2,0.006]
[1633104473126,1.48,3228.6,3228.2,0.006]
[1633104476329,0.186,3228.6,3228.2,0.006]
[1633104479734,1.89033259,3228.6,3228.2,0.006]
[1633104480797,3.18433259,3228.6,3228.2,0.006]
[1633104481399,1.89033259,3228.6,3228.2,0.006]
[1633104482399,11.35,3228.5,3228.2,0.006]
[1633104482598,4.83426,3228.4,3228.2,0.006]
[1633104484200,10.05,3228.3,3228.2,0.006]
[1633104484400,0.186,3228.3,3228.2,0.006]
[1633104484600,1.0862187,3228.3,3228.2,0.006]
[1633104489202,1.0862187,3228.3,3228.0,0.009]
[1633104489411,2.6909187,3228.3,3228.0,0.009]
[1633104489602,4.645,3228.1,3228.0,0.009]
[1633104489803,4.831,3228.1,3228.0,0.009]
[1633104490202,0.006,3228.0,3227.9,0.006]
[1633104490407,9.86980744,3228.0,3227.9,0.006]
[1633104490602,10.914753,3228.0,3227.9,0.006]
[1633104490802,10.90101128,3228.0,3227.9,0.006]
[1633104491002,10.89781128,3228.0,3227.9,0.006]
[1633104491202,10.90101128,3228.0,3227.9,0.006]
[1633104491606,10.77941128,3228.0,3227.9,0.006]
[1633104492605,10.89701128,3228.0,3227.9,0.006]
[1633104492804,13.32092528,3228.0,3227.7,0.006]
[1633104493107,12.07278,3227.9,3227.7,0.006]
[1633104493305,12.29141195,3227.9,3227.7,0.006]
[1633104493904,12.40981195,3227.9,3227.7,0.006]
[1633104494304,12.41141195,3227.9,3227.7,0.006]
[1633104494707,12.41061195,3227.9,3227.7,0.006]
[1633104495106,12.41541195,3227.9,3227.7,0.006]
[1633104495305,12.41301195,3227.9,3227.7,0.006]
[1633104495808,12.41461195,3227.9,3227.7,0.006]
[1633104496007,12.40981195,3227.9,3227.7,0.006]
[1633104496207,11.18091195,3227.9,3227.7,0.006]
[1633104496408,11.14748,3227.9,3227.7,0.006]
[1633104496610,11.02988,3227.9,3227.7,0.006]
[1633104497406,26.14668,3227.9,3227.7,0.006]
[1633104497609,12.27508,3227.9,3227.7,0.006]
[1633104497807,28.57228,3227.9,3227.7,0.006]
[1633104498006,13.4857544,3227.9,3227.7,0.006]
[1633104498207,13.6025544,3227.9,3227.7,0.006]
[1633104498610,13.6065544,3227.9,3227.7,0.006]
[1633104499008,13.6041544,3227.9,3227.7,0.006]
[1633104499406,13.6049544,3227.9,3227.7,0.006]
[1633104499606,13.6057544,3227.9,3227.7,0.006]
[1633104499806,12.4789544,3227.9,3227.7,0.006]
[1633104500006,12.44468,3227.9,3227.7,0.006]
[1633104500207,13.76218,3227.9,3227.7,0.006]
[1633104500406,13.76298,3227.9,3227.7,0.006]
[1633104500607,12.8,3227.8,3227.3,0.006]
[1633104500811,6.1297,3227.6,3227.3,0.006]
[1633104501008,22.94643586,3227.6,3227.3,0.006]
[1633104501206,22.94643586,3227.6,3227.0,0.009]
[1633104501207,14.4278,3227.5,3227.0,0.009]
[1633104501406,101.01205277,3227.6,3226.9,0.006]
[1633104501407,20.06409882,3227.1,3226.9,0.006]
[1633104501608,0.186,3227.0,3226.9,0.006]
[1633104501812,1.4437,3226.9,3226.6,0.006]
[1633104502008,17.9237,3226.9,3226.6,0.006]
[1633104502208,4.6141358,3226.9,3226.6,0.006]
[1633104502609,7.75115,3226.8,3226.6,0.006]
[1633104502808,0.186,3226.7,3226.6,0.006]
[1633104504611,6.387,3226.7,3226.6,0.006]
[1633104505411,11.032,3226.7,3226.6,0.006]
[1633104505611,12.326,3226.7,3226.6,0.006]
[1633104506010,12.326,3226.7,3226.0,0.009]
[1633104506212,11.032,3226.7,3226.0,0.009]
[1633104506811,26.032,3226.7,3226.0,0.009]
[1633104507014,3.10083,3226.6,3226.0,0.009]
[1633104507212,0.186,3226.5,3226.0,0.009]
[1633104507813,0.186,3226.5,3225.9,0.9798457]
[1633104508015,0.186,3226.5,3226.4,0.050732]
[1633104508215,0.189,3226.5,3226.4,0.050732]
[1633104509215,0.189,3226.5,3226.4,1.344732]
[1633104509618,0.189,3226.5,3226.0,0.90745131]
[1633104510218,0.189,3226.5,3226.2,0.043153]
[1633104511418,0.189,3226.5,3226.3,1.294]
[1633104511617,0.189,3226.5,3226.2,0.043153]
[1633104512222,0.189,3226.5,3226.0,0.93237085]
[1633104512419,0.189,3226.5,3226.0,0.90745131]
[1633104512620,0.189,3226.5,3225.8,0.006]
[1633104512821,5.4,3226.4,3225.7,0.005153]
[1633104513021,0.186,3226.3,3225.7,0.005153]
[1633104513522,1.0,3226.0,3225.7,0.005153]
[1633104513722,1.0,3226.0,3225.8,1.294]
[1633104513921,1.0,3226.0,3225.9,1.18314126]
[1633104514523,1.0,3226.0,3225.9,2.03313925]
[1633104514921,1.0,3226.0,3225.9,3.32713925]
[1633104515521,1.0,3226.0,3225.9,2.47714126]
[1633104516523,1.0,3226.0,3225.9,3.22250325]
[1633104516723,1.0,3226.0,3225.9,1.92850325]
[1633104516924,1.0,3226.0,3225.9,1.18314126]
[1633104517325,1.0,3226.0,3225.9,2.47714126]
[1633104517924,1.0,3226.0,3225.9,3.34029879]
[1633104521925,1.0,3226.0,3225.9,3.34126707]
[1633104522125,1.0,3226.0,3225.9,3.34320363]
[1633104522531,1.0,3226.0,3225.9,2.04920363]
[1633104526729,1.0,3226.0,3225.9,1.1860461]
[1633104526932,1.0,3226.0,3225.9,0.00290484]
[1633104527131,1.186,3226.0,3225.9,0.00290484]
[1633104528332,1.186,3226.0,3225.9,1.17231174]
[1633104528731,1.186,3226.0,3225.9,0.00290484]
[1633104529932,1.186,3226.0,3225.9,1.08887631]
[1633104535738,1.17820132,3226.0,3225.9,1.08887631]
[1633104538005,1.17820132,3226.0,3225.9,1.08776531]
[1633104540407,1.17820132,3226.0,3225.9,1.8410487]
[1633104541210,1.17820132,3226.0,3225.9,1.08776531]
[1633104541410,1.17820132,3226.0,3225.9,1.84133299]
[1633104541610,1.17820132,3226.0,3225.9,1.84133911]
[1633104542211,1.17820132,3226.0,3225.9,0.75536764]
[1633104542410,1.17820132,3226.0,3225.9,0.00179384]
[1633104543416,1.17820132,3226.0,3225.9,0.00263867]
[1633104546917,1.07820132,3226.0,3225.9,0.00263867]
[1633104547118,1.07820132,3226.0,3225.9,0.75698449]
[1633104547719,1.07820132,3226.0,3225.9,0.75707232]
[1633104547919,1.07820132,3226.0,3225.9,0.00263867]
[1633104552924,5.036,3226.0,3225.8,0.17530917]
[1633104553121,0.186,3226.0,3225.8,0.17530917]
[1633104554121,5.43125061,3225.9,3225.8,0.17530917]
[1633104554325,5.61725061,3225.9,3225.8,0.17530917]
[1633104554523,4.83655,3225.9,3225.8,0.93077349]
[1633104554723,4.83655,3225.9,3225.8,0.93072868]
[1633104555125,4.83655,3225.9,3225.8,0.93072297]
[1633104556124,4.83655,3225.9,3225.8,0.93087454]
[1633104557526,9.3007,3226.2,3225.9,4.65055]
[1633104557725,27.7135,3227.1,3225.9,4.65055]
[1633104557726,0.53442884,3227.3,3226.8,4.73725557]
[1633104557927,1.74143375,3227.2,3226.9,0.039516]
[1633104558125,0.003,3227.5,3226.9,2.66031629]
[1633104558326,1.74304584,3227.4,3226.9,2.62873024]
[1633104558526,0.003,3227.5,3226.9,1.02763214]
[1633104558727,0.003,3227.5,3226.9,1.91807972]
[1633104558931,0.003,3227.5,3226.9,0.92996358]
[1633104559928,0.82451764,3227.5,3226.9,1.91984387]
[1633104560127,0.003,3227.5,3226.9,1.91984387]
[1633104560728,0.003,3227.5,3226.9,2.67575873]
[1633104562332,0.053,3227.0,3226.9,2.67575873]
[1633104562529,0.053,3227.0,3226.9,1.68587844]
[1633104563529,0.053,3227.0,3226.9,2.66630133]
[1633104564329,0.0716,3227.7,3226.9,2.66630133]
[1633104564531,1.74482218,3227.6,3227.0,0.75665163]
[1633104564729,1.74482218,3227.6,3227.0,0.75965163]
[1633104565329,0.0716,3227.7,3227.0,0.003]
[1633104565330,1.74428629,3227.5,3227.0,0.003]
[1633104565542,1.74431025,3227.4,3227.0,0.003]
[1633104565729,1.74426455,3227.3,3227.0,0.003]
[1633104565930,0.53554096,3227.6,3227.0,0.003]
[1633104566131,0.0716,3227.7,3227.4,0.87036849]
[1633104566332,1.74441419,3227.6,3227.4,0.87036849]
[1633104566736,1.74441419,3227.6,3227.0,0.003]
[1633104566931,1.74441419,3227.6,3227.0,0.75982814]
[1633104567732,1.74441419,3227.6,3227.3,1.01898138]
[1633104567933,0.0716,3227.7,3227.3,1.01898138]
[1633104568132,1.74530815,3227.6,3227.3,1.01898138]
[1633104568933,1.74530815,3227.6,3227.0,0.003]
[1633104569134,1.74530815,3227.6,3227.0,5.4073753]
[1633104569336,1.74530815,3227.6,3227.1,0.75685876]
[1633104570136,0.0716,3227.7,3227.4,1.08649396]